Cogmind - Beta 13 @@@ ROGUE MODE // 2024.03.31 @ 19:29:47 Player: Kat Result: Self-destructed Performance ------------- Evolutions (1) 500 Regions Visited (2) 400 Robots Destroyed (13) 65 Value Destroyed (363) 363 Prototype IDs (3) 60 Alien Tech Used (0) 0 Bonus (0) 0 TOTAL SCORE: 1388 Bonus ------- None Cogmind --------- Core Integrity 309/400 Matter 291/300 Energy 415/415 System Corruption 3% Temperature Cool (6) Movement Core (300) Ox5 Location -9/Materials Parts ------- > --- POWER (1) -------- Improved Ion Engine > --- PROPULSION (2) --- (None) > --- UTILITY (4) ------ Improved Heat Sink Small Storage Unit Medium Battery > --- WEAPON (2) ------- Light Assault Rifle Light Assault Rifle > --- INVENTORY (8) ---- Light Ion Engine Light Treads Heat Sink Large Matter Pod (62) Peak State ------------ > --- POWER ------------ Improved Ion Engine > --- PROPULSION ------- Light Treads Light Treads > --- UTILITY ---------- Improved Heat Sink Small Storage Unit Medium Battery Sensor Array > --- WEAPON ----------- Light Assault Rifle Light Assault Rifle > --- INVENTORY -------- Light Ion Engine Light Treads Heat Sink Large Matter Pod [Rating: 12] Favorites ----------- Power Light Ion Engine Engine Light Ion Engine Propulsion Light Treads Treads Light Treads Utility Small Storage Unit Device Sensor Array Storage Small Storage Unit Protection Light Armor Plating Weapon Light Assault Rifle Ballistic Gun Light Assault Rifle Build | -11 -10 -9 ------- Run | Yrd Mat Mat Slots Evolved 2 | . . 2 Power . | . . . Propulsion . | . . . Utility 2 | . . 2 Weapon . | . . . Parts Attached 15 | 6 2 7 Power 2 | 1 . 1 Engine 2 | 1 . 1 Core . | . . . Reactor . | . . . Propulsion 2 | 2 . . Treads 2 | 2 . . Leg . | . . . Wheel . | . . . Hover . | . . . Flight . | . . . Utility 7 | 1 2 4 Device 2 | . 1 1 Storage 3 | 1 . 2 Processor . | . . . Hackware . | . . . Protection 2 | . 1 1 Artifact . | . . . Weapon 4 | 2 . 2 Energy Gun . | . . . Energy Cannon . | . . . Ballistic Gun 4 | 2 . 2 Ballistic Cannon . | . . . Launcher . | . . . Special Weapon . | . . . Impact Weapon . | . . . Slashing Weapon . | . . . Piercing Weapon . | . . . Special Melee Weapon . | . . . Unidentified Prototypes . | . . . Parts Lost 6 | . . 6 Power . | . . . Propulsion 2 | . . 2 Utility 2 | . . 2 Weapon 2 | . . 2 Highest Loss Streak 5 | . . 5 To Critical Strikes . | . . . Average Slot Usage (%) 98 | . 99 98 Engine 12 | . 14 11 Treads 24 | . 28 21 Device 10 | . 9 11 Storage 18 | . 14 22 Protection 7 | . 3 9 Ballistic Gun 24 | . 28 21 Naked Turns . | . . . Heaviest Build 21 | 11 14 21 Greatest Support 40 | 40 40 40 Greatest Overweight (x) . | . . . Average Overweight (x) . | . . . Largest Inventory Capacity 8 | 8 8 8 Average Capacity 7 | 7 8 8 Most Carried 5 | 2 3 5 Average Carried 2 | . 1 3 Final Capacity 8 | 8 8 8 Final Carried 4 | . 3 4 Class Distribution -------------------- 97% | Mutant Dominant Class ---------------- Mutant | -10/Materials Mutant | -9/Materials Resources | -11 -10 -9 ----------- Run | Yrd Mat Mat Matter Collected 585 | 83 240 262 Remotely . | . . . Salvage Created 436 | . 97 339 Parts 34 | . 8 26 Haulers Intercepted . | . . . Recyclers Shooed . | . . . Parts Field Recycled . | . . . Retrieved Matter . | . . . Parts Self-Destructed . | . . . Prevented . | . . . Kills | -11 -10 -9 ------- Run | Yrd Mat Mat Combat Hostiles Destroyed 12 | . 2 10 Guns 12 | . 2 10 Classes Destroyed 4 | . 2 2 Watcher 1 | . 1 . Swarmer 4 | . . 4 Grunt 6 | . 2 4 Sentry 2 | . . 2 Best Kill Streak 6 | . 1 6 Combat Bots Only 6 | . 1 6 Max Kills in Single Turn 1 | . 1 1 Gunslinging . | . . . Exploded . | . . . Melee . | . . . Uniques/NPCs Destroyed . | . . . Combat | -11 -10 -9 -------- Run | Yrd Mat Mat Hostile Shots Fired 102 | . 7 95 Missed 28 | . 1 27 Damage Taken 825 | . 66 759 Core 91 | . . 91 Absorbed by Shields . | . . . Core Remaining (%) 100 | 100 100 . Volleys Fired 56 | . 11 45 Largest 2 | . 2 2 Hottest 40 | . 40 40 Shots Fired 109 | . 22 87 Gun 109 | . 22 87 Cannon . | . . . Launcher . | . . . Special . | . . . Kinetic 109 | . 22 87 Thermal . | . . . Explosive . | . . . Electromagnetic . | . . . Robot Hit Streak 15 | . 5 15 Robot Miss Streak 4 | . 3 4 Penetration Max . | . . . Secondary Targets . | . . . Shots Hit Robots 72 | . 11 61 Core Hits 30 | . 6 24 Critical Kills . | . . . Critical Parts Destroyed 1 | . . 1 Critical Strikes 1 | . . 1 Destroy 1 | . . 1 Melee Attacks . | . . . Impact . | . . . Slashing . | . . . Piercing . | . . . Sneak Attacks . | . . . Combat Hostiles . | . . . Follow-up Attacks . | . . . Damage Inflicted 699 | . 120 579 Guns 699 | . 120 579 Cannons . | . . . Explosions . | . . . Melee . | . . . Ramming . | . . . Kinetic 699 | . 120 579 Thermal . | . . . Explosive . | . . . Electromagnetic . | . . . Impact . | . . . Slashing . | . . . Piercing . | . . . Highest Corruption 3 | . . 3 Average Corruption 2 | . . 2 Corruption Purged . | . . . Corruption Blocked . | . . . Effects 14 | . . 14 Message Errors 6 | . . 6 Matter Fused 2 | . . 2 Heat Flow Errors 2 | . . 2 Energy Discharges 1 | . . 1 Data Loss (minor) 1 | . . 1 Misfires 2 | . . 2 Overload Shots . | . . . Overflow Damage . | . . . Projectiles . | . . . Explosions . | . . . Melee . | . . . Knockbacks . | . . . Impact . | . . . Kinetic . | . . . Secondary . | . . . Self-Inflicted Damage . | . . . Shots . | . . . Rammed . | . . . Targets Rammed . | . . . Kicked . | . . . Crushed . | . . . Highest Temperature 243 | . 12 243 Average Temperature 39 | . 6 43 Received Heat Transfer 288 | . 36 252 Siege Activations . | . . . Robots Corrupted . | . . . Combat Hostiles . | . . . Parts Fried . | . . . Impact Corruptions . | . . . Robots Melted . | . . . Combat Hostiles . | . . . Parts Melted . | . . . Heat Transferred . | . . . Parts Sabotaged . | . . . Parts Stolen . | . . . Parts Stripped . | . . . Power Chain Reactions . | . . . Alert | -11 -10 -9 ------- Run | Yrd Mat Mat Peak Influence 159 | . 127 159 Initial 5 | . . 5 Average 55 | . 59 57 Maximum Alert Level . | . . . Low Security (%) 100 | 100 100 100 Level 1 . | . . . Level 2 . | . . . Level 3 . | . . . Level 4 . | . . . Level 5 . | . . . High Security . | . . . Max Security . | . . . Squads Dispatched 4 | . 3 1 Investigation 2 | . 1 1 Extermination . | . . . Reinforcement 2 | . 2 . Assault . | . . . Garrison . | . . . Intercept . | . . . Searches Triggered . | . . . Construction Impeded . | . . . Haulers Reinforced . | . . . Active Scanning Responses . | . . . Cargo Convoy Interrupts . | . . . Stealth | -11 -10 -9 --------- Run | Yrd Mat Mat Distress Signals 2 | . . 2 Communications Jammed . | . . . Distress Signals . | . . . Times Spotted 28 | . 6 22 Peak Tracking Total 6 | . 4 6 Tactical Retreats 3 | . 1 2 Traps | -11 -10 -9 ------- Run | Yrd Mat Mat Traps Triggered 4 | . 1 3 Indirectly . | . . . Trap Hack Attempts . | . . . Triggered . | . . . Disarmed . | . . . Reprogrammed . | . . . Reused . | . . . Traps Extracted . | . . . Installed . | . . . Triggered . | . . . Machines | -11 -10 -9 ---------- Run | Yrd Mat Mat Machines Disabled . | . . . Max in Single Turn . | . . . Machines Repaired . | . . . Machines Dismantled . | . . . Machines Sabotaged . | . . . Overloaded Fab Kills . | . . . Hacking | -11 -10 -9 --------- Run | Yrd Mat Mat Machines Accessed 2 | . 1 1 Terminals 2 | . 1 1 Fabricators . | . . . Repair Stations . | . . . Recycling Units . | . . . Scanalyzers . | . . . Garrison Access . | . . . Total Hacks 5 | . 3 2 Successful 3 | . 1 2 Failed 2 | . 2 . Catastrophic . | . . . Database Lockouts . | . . . Manual . | . . . Terminals 5 | . 3 2 Fabricators . | . . . Repair Stations . | . . . Recycling Units . | . . . Scanalyzers . | . . . Garrison Access . | . . . Terminal Hacks 3 | . 1 2 Prototype ID Bank 1 | . 1 . Dispatch Records 1 | . . 1 Hauler Manifests 1 | . . 1 Fabricator Hacks . | . . . Repair Station Hacks . | . . . Recycling Unit Hacks . | . . . Scanalyzer . | . . . Garrison Access Hacks . | . . . Unauthorized Hacks . | . . . Terminals . | . . . Fabricators . | . . . Repair Stations . | . . . Recycling Units . | . . . Scanalyzers . | . . . Garrison Access . | . . . Data Cores Recovered . | . . . Used . | . . . Hacking Detections 2 | . 1 1 Full Trace Events . | . . . Feedback Events . | . . . Feedback Blocked . | . . . Robot Schematics Acquired . | . . . Robots Built . | . . . Authchips . | . . . Time . | . . . Total Robot Build Rating . | . . . Part Schematics Acquired . | . . . Parts Built . | . . . Authchips . | . . . Time . | . . . Total Part Build Rating . | . . . Parts Repaired . | . . . Time . | . . . Parts Recycled . | . . . Recycled Matter . | . . . Retrieved Matter . | . . . Retrieved Components . | . . . Parts Scanalyzed . | . . . Part Schematics Acquired . | . . . Parts Damaged . | . . . Bothacking | -11 -10 -9 ------------ Run | Yrd Mat Mat Used RIF Installer . | . . . Robots Hacked . | . . . Non-combat . | . . . Combat . | . . . Robot Hacks Applied . | . . . Relay Couplers Released . | . . . Fabnet Peak Effective % . | . . . Robots Rewired . | . . . Allies Hacked . | . . . Hacks Repelled . | . . . Allies | -11 -10 -9 -------- Run | Yrd Mat Mat Total Allies . | . . . Largest Group . | . . . Highest-Rated Group . | . . . Highest-Rated Ally . | . . . Total Orders . | . . . Ally Attacks . | . . . Total Damage . | . . . Kills . | . . . Allies Corrupted . | . . . Allies Melted . | . . . Intel | -11 -10 -9 ------- Run | Yrd Mat Mat Robot Analysis Total . | . . . Derelict Logs Recovered . | . . . Drone Launches . | . . . Drone Recoveries . | . . . Exploration | -11 -10 -9 ------------- Run | Yrd Mat Mat Turns Passed 1236 | 70 481 685 Spaces Moved 493 | 41 231 221 Core 7 | 7 . . Treads 486 | 34 231 221 Legs . | . . . Wheels . | . . . Hover . | . . . Flight . | . . . Fastest Speed 50 | 50 160 160 Average Speed 158 | 141 160 160 Slowest Speed 160 | 160 160 160 Overloaded Moves . | . . . Propulsion Burnouts . | . . . Robots Hopped . | . . . Cave-ins Triggered . | . . . Exploration Rate (%) 19 | 4 33 20 Regions Visited 2 Branch Regions . Pre-discovered Areas . | . . . Known Exits Taken . | . . . Unknown Exits Taken 2 | 1 1 . Scrap Searched . | . . . Spaces Dug . | . . . Terrain Destroyed . | . . . Melee . | . . . Projectile . | . . . AOE . | . . . Terrain Rammed . | . . . Walls Destroyed . | . . . Machines Disabled . | . . . Actions | -11 -10 -9 --------- Run | Yrd Mat Mat Total 853 | 54 322 477 Wait 273 | . 75 198 Move 491 | 40 230 221 Hop . | . . . Pick Up 17 | 7 4 6 Fast Attach . | . . . Attach 12 | 6 1 5 Detach . | . . . Swap 3 | . 1 2 Drop 1 | 1 . . Fire 56 | . 11 45 Melee . | . . . Ram . | . . . Kick . | . . . Crush . | . . . Escape Stasis . | . . . Rewire . | . . . Trap . | . . . Miscellaneous . | . . . Route ------- -11/Scrapyard -10/Materials -9/Materials History --------- Turn | Location | Event 3 | -11/Scrapyard | Discovered new exit (range 15) 71 | -11/Scrapyard | Entered Materials 316 | -10/Materials | Build established: Mutant 525 | -10/Materials | Discovered new exit (range 9) 552 | -10/Materials | Entered another Materials area 552 | -9/Materials | Evolved 2 slots: Utility x2 1237 | -9/Materials | Self-destructed Last Messages --------------- 01189_ K-01 Serf collects debris. 01192_ S-10 Pest destroyed. 01192_ R-06 Scavenger collects Flight Unit. 01194_ K-01 Serf collects debris. 01195_ R-06 Scavenger collects Aluminum Leg. 01197_ K-01 Serf collects debris. 01198_ Acquired Lgt. Assault Rifle. 01198_ K-01 Serf collects debris. 01201_ Acquired Imp. Heat Sink. 01204_ K-01 Serf collects debris. 01204_ W-16 Scout sends out distress signal. 01206_ K-01 Serf collects debris. 01211_ Sensor Array destroyed. 01212_ Acquired 41 matter. 01215_ Acquired 18 matter. 01217_ Lgt. Treads destroyed. 01225_ W-16 Scout sends out distress signal. 01232_ Destroyed Lgt. Ion Engine. 01235_ Destroyed Flight Unit. 01237_ Lgt. Treads destroyed. Map ----- +----------------------------------------------------+ | ?????????????????????????????????????????????????? | | ?????????????????????????????????????????????????? | | ?????????????????????????????????????????????????? | | ?????????????????????????????????????????????????? | | ??????????????????? ???????????????????????????? | | ??????????????????? ?????????????????????????? | | ??????????????????T ????????????????????????? | | ??????????????????" "????????????????????????? | | #+######?????????## "????????????????????????? | | ???????? "????????????????????????? | | ????????? ?????????????????????????? | | ????????? ?????????????????????????? | | #####?????????????# ??????????????????????????? | | ??????????????????# #??????????????????????????? | | ??????????????????# #??????????????????????????? | | ??????????????????# #??????????????????????????? | | ??????????????????# ###########????????????????? | | ??????????????????# ## #????????????????? | | ?????????????????## ## #????????????????? | | ???????########### # #????????????????? | | ######## # #????????????????? | | # =# + #????????????????? | | # # #gg #????????????????? | | # """ + ####### #s = #????????????????? | | # """% # #?????####### #????????????????? | | # """ #= #???????????# @=%[ #????????????????? | | # # ##########??##/#######????????????????? | | ######## [%% ?????????????????????? | | =* ????????????????????? | | ####### ???????????????????? | | ########### ################ ?????????????????? | | # # #??????????????? #????????????????? | | # """ # #???????????????? #????????????????? | | # """ # #????????????????? #????????????????? | | + """ #?#??????????????????#????????????????? | | # "" #?????????????????????????????????????? | | # "T #?????????????????????????????????????? | | # "" ] #?????????????????????????????????????? | | # #?????????????????????????????????????? | | ###########?????????????????????????????????????? | | #???????????????????????????????????????????????? | | ########????????????????????????????????????????? | | # #????????????????????????????????????????? | | # """ #????????????????????????????????????????? | | # """ #????????????????????????????????????????? | | %+ """ #????????????????????????????????????????? | | # #????????????????????????????????????????? | | # = #????????????????????????????????????????? | | ########????????????????????????????????????????? | | #???????????????????????????????????????????????? | +----------------------------------------------------+ Best States ------------- Heat Dissipation 42 Energy Generation 12 Energy Capacity 415 Matter Stores 300 Matter Capacity 450 Sight Range 16 Robot Scan Range 14 Terrain Scan Density 10 Armor Coverage 150 Evasion (%) 40 Recoil Reduction 2 Item Schematics ----------------- None Robot Schematics ------------------ None Fabricated ------------ Nothing Alien Tech Used ----------------- None Achievements -------------- None Challenges ------------ None Game ------ Seed FlightThrusterGun Manual? 0 Play Time 00:08:08 Cumulative 4.2 hours Start 2024.03.31 @ 19:21:39 End 2024.03.31 @ 19:29:47 Sessions 1 Manual Loads 0 Difficulty Rogue Special Mode None Game No. 16 Rogue 16 Adventurer 0 Explorer 0 Win Type - Total 0 Types 0/0/0/0/0/0/0/0/0 Lore% 3 Gallery% 14 Achievement% 12 Wizard Run 0 Options --------- Layout 0 ASCII 0 Keyboard 0 Movement Mouse Keybinds 0 Fullscreen 1 Font 18/SmallcapsGlow Map View 76x50 Zoom Use 0% Tactical HUD 1 Map Filters NONE Filters NONE Steam 1 RUN: 02b66922-5ac4-4803-abe5-b01489f8dc94